bitfinex-derivatives/quotes_ETHF0:USTF0_20251103
["timestamp","ask_amount","ask_price","bid_price","bid_amount"]
[1762139851740,3.2078,3763.2,3762.5,3.2078]
[1762139851741,2.0251052,3762.9,3762.1,3.2078]
[1762139851945,3.2078,3762.4,3761.7,3.2078]
[1762139852136,3.2078,3762.0,3761.1,1.3259]
[1762139852341,1.3938,3762.9,3761.6,0.47852]
[1762139852342,3.2078,3762.4,3761.6,0.47852]
[1762139852744,3.21099636,3762.4,3761.6,0.00189675]
[1762139852947,3.84230156,3762.4,3761.6,0.00189675]
[1762139853143,3.21099636,3762.4,3761.6,0.00189675]
[1762139853354,3.2078,3761.9,3761.6,0.00189675]
[1762139853650,3.2078,3761.9,3760.6,3.2078]
[1762139853651,0.6313052,3761.7,3760.6,3.2078]
[1762139853850,3.2078,3761.2,3760.1,8.211]
[1762139854147,3.2078,3761.2,3760.4,0.47868]
[1762139854344,0.6313052,3760.9,3760.3,0.47869]
[1762139854653,0.6313052,3760.9,3760.3,0.48061564]
[1762139854953,1.3938,3762.0,3760.8,3.2078]
[1762139855146,1.3938,3762.0,3760.9,10.97]
[1762139855340,0.6313052,3762.0,3761.4,0.47855]
[1762139855541,0.6313052,3761.8,3761.4,0.47855]
[1762139855742,0.6313052,3761.9,3761.4,0.47855]
[1762139855950,3.8391052,3762.1,3761.4,0.47855]
[1762139856149,3.8391052,3762.1,3760.9,14.1778]
[1762139856150,3.8391052,3762.1,3761.1,0.47858]
[1762139856351,0.6313052,3761.9,3761.1,0.47858]
[1762139856543,0.6313052,3761.9,3761.3,0.47856]
[1762139856745,0.6313052,3761.5,3761.3,0.47856]
[1762139856938,0.00319636,3762.4,3762.0,0.47848]
[1762139857140,0.6313052,3762.2,3761.7,3.2078]
[1762139857545,0.6313052,3761.9,3761.7,3.2078]
[1762139857845,0.00319636,3762.4,3761.7,3.2078]
[1762139857846,0.6313052,3761.8,3761.7,3.2078]
[1762139858045,0.6313052,3762.1,3761.9,0.47849]
[1762139858245,0.00319636,3762.4,3762.1,0.47847]
[1762139858453,0.6313052,3762.2,3762.1,0.47847]
[1762139858844,0.6313052,3762.2,3761.7,3.2078]
[1762139859154,0.6313052,3761.8,3761.5,0.47853]
[1762139859355,3.21099636,3762.4,3762.3,0.47845]
[1762139859543,0.00319636,3762.4,3762.3,0.47845]
[1762139860045,3.2078,3763.4,3762.2,3.2078]
[1762139860250,0.6313052,3763.3,3762.2,3.2078]
[1762139860445,0.6313052,3763.3,3762.4,0.47842]
[1762139860753,0.6313052,3762.3,3761.5,3.2078]
[1762139860956,0.00211592,3762.3,3761.5,3.2078]
[1762139861158,0.6313052,3762.0,3761.5,3.2078]
[1762139861351,0.00211592,3762.3,3761.9,0.4785]
[1762139861651,3.2078,3763.1,3762.0,0.9516]
[1762139861854,3.2078,3763.1,3762.3,3.68624]
[1762139862052,3.2078,3763.1,3762.0,10.97]
[1762139862245,3.2078,3762.7,3761.9,3.68629]
[1762139862453,3.2078,3762.7,3761.9,3.2078]
[1762139862642,3.21014875,3762.7,3762.0,0.47848]
[1762139863153,3.21014875,3762.7,3761.9,3.2078]
[1762139863747,3.21014875,3762.7,3762.1,0.47846]
[1762139863948,3.21014875,3762.7,3761.9,3.2078]
[1762139864145,1.3938,3762.0,3761.5,3.2078]
[1762139864450,0.4786,3761.2,3760.2,1.3432]
[1762139864655,1.3938,3762.0,3759.3,1.3432]
[1762139864656,3.2078,3760.4,3759.9,0.47874]
[1762139864860,3.2078,3760.4,3760.1,0.47872]
[1762139865052,3.2078,3760.4,3760.3,0.48062564]
[1762139865258,3.2078,3760.4,3760.3,0.00192564]
[1762139865654,3.2078,3760.4,3760.3,0.48062564]
[1762139866952,3.2078,3760.4,3760.3,0.00192564]
[1762139867563,3.2078,3760.4,3760.3,0.48062564]
[1762139867859,3.2078,3760.4,3760.3,0.00192564]
[1762139868653,3.2078,3762.1,3761.1,0.47859]
[1762139868856,3.2078,3761.8,3761.1,1.3793]
[1762139869759,3.2078,3761.8,3761.1,1.85789]
[1762139870174,3.2078,3761.8,3761.1,1.3793]
[1762139870472,3.2078,3761.8,3761.4,0.47855]
[1762139870775,3.2078,3761.8,3761.5,0.47853]
[1762139870966,3.2078,3762.2,3761.5,0.47854]
[1762139871167,3.2078,3762.2,3761.5,0.47853]
[1762139871369,3.2078,3761.8,3761.5,0.47853]
[1762139871666,3.2078,3762.3,3761.7,0.47851]
[1762139872072,3.2078,3761.9,3761.2,0.47858]
[1762139872378,3.2078,3761.9,3761.6,0.47853]
[1762139872875,3.2078,3762.3,3761.7,0.47851]
[1762139873276,3.2078,3762.3,3761.1,4.5871]
[1762139873680,3.2078,3762.3,3761.7,0.47851]
[1762139873975,3.2078,3762.3,3761.1,4.5871]
[1762139874177,3.2078,3761.9,3761.1,3.2078]
[1762139874485,3.2078,3761.5,3760.8,10.968]
[1762139874681,3.2078,3761.5,3761.0,0.4786]
[1762139875279,3.2078,3761.5,3761.4,0.47856]
[1762139876284,3.2078,3761.5,3761.3,0.47856]
[1762139877085,3.2078,3761.5,3761.0,3.2078]
[1762139877272,3.2078,3761.5,3761.3,0.47856]
[1762139878179,3.2078,3761.9,3761.4,0.47855]
[1762139878377,3.2078,3761.9,3761.0,3.2078]
[1762139878986,3.2078,3761.2,3761.0,0.4786]
[1762139879281,3.2078,3761.2,3760.8,1.85793]
[1762139879675,3.2078,3761.2,3760.8,1.3793]
[1762139880575,3.2078,3761.2,3760.8,1.85792]
[1762139880768,3.2078,3761.2,3760.9,0.47861]
[1762139880972,3.2078,3761.2,3760.8,1.3793]
[1762139881175,3.2078,3761.2,3761.0,0.4786]
[1762139881377,3.2078,3761.2,3760.8,12.3403]
[1762139881575,3.2078,3761.2,3760.8,12.81893]
[1762139881981,3.2078,3761.2,3760.8,10.961]
[1762139882176,0.47861,3761.0,3760.3,0.00192564]
[1762139882382,3.2078,3760.6,3760.3,0.00192564]
[1762139882583,3.2078,3761.0,3760.5,2.86077]
[1762139882883,3.2078,3761.0,3760.3,0.00192564]
[1762139883086,3.2078,3761.0,3760.3,0.48061564]
[1762139883277,3.2078,3761.0,3760.3,0.00192564]
[1762139884480,3.2078,3761.0,3760.5,0.47866]
[1762139885078,3.2078,3761.0,3760.3,0.00192564]
[1762139885277,3.2078,3761.0,3760.9,2.86072]
[1762139885479,3.2078,3761.5,3761.4,2.3821]
[1762139885691,3.2078,3761.5,3761.4,2.86066]
[1762139885991,3.2078,3762.4,3761.6,1.3793]
[1762139886288,3.2078,3762.4,3762.2,0.47845]
[1762139886881,0.00234875,3762.7,3762.6,0.47841]
[1762139887187,3.2078,3763.4,3763.3,0.47832]
[1762139887588,3.2078,3763.8,3763.7,0.47827]
[1762139888187,3.2078,3763.8,3763.7,11.43427]
[1762139888496,0.00193992,3763.8,3763.7,11.43741927]
[1762139888683,3.20973992,3763.8,3763.7,10.95914927]
[1762139889586,0.00193992,3763.8,3763.7,11.43741927]
[1762139889790,0.00193992,3763.8,3763.7,13.04825312]
[1762139889985,3.2078,3764.4,3764.3,0.47819]
[1762139890987,3.2078,3764.4,3764.2,10.953]
[1762139890988,3.21039163,3764.4,3764.2,10.953]
[1762139891888,3.21039163,3764.4,3764.3,0.47819]
[1762139892494,3.21039163,3764.4,3764.2,10.953]
[1762139892796,3.21039163,3764.4,3764.2,11.43119]
[1762139893195,3.21039163,3764.4,3764.2,10.953]
[1762139895198,2.78749,3764.3,3763.7,3.21094927]
[1762139895389,3.2078,3763.8,3763.7,10.94714927]
[1762139895588,3.2078,3764.2,3764.1,2.3213]
[1762139895891,0.025,3764.7,3764.1,2.3213]
[1762139895892,0.025,3764.7,3764.6,2.79945]
[1762139896094,0.025,3764.7,3764.6,13.74245]
[1762139896295,0.025,3764.7,3764.6,54.54245]
[1762139896795,0.025,3764.7,3764.6,13.74245]
[1762139896997,0.02707224,3764.7,3764.6,13.74245]
[1762139897298,0.02707224,3764.7,3764.6,54.54245]
[1762139897895,3.2078,3765.5,3765.0,2.3213]
[1762139898098,3.2078,3765.5,3765.4,0.47804]
[1762139898294,3.2078,3765.5,3765.1,10.94]
[1762139898891,3.2109118,3765.5,3765.1,11.41808]
[1762139899191,3.2109118,3765.5,3765.3,0.47805]
[1762139899392,0.0031118,3765.5,3765.4,2.3213]
[1762139900097,3.2078,3765.9,3765.8,2.7993]
[1762139900288,3.2078,3766.4,3766.3,2.3213]
[1762139900493,3.2078,3766.4,3766.3,10.936]
[1762139901092,3.210221,3766.4,3766.3,10.936]
[1762139901293,1.19426,3768.2,3766.3,10.936]
[1762139901294,3.2078,3767.0,3766.4,1.429]
[1762139901495,3.2078,3768.0,3766.9,4.81863385]
[1762139901697,3.2078,3767.3,3767.2,1.90681]
[1762139901896,3.68548,3768.4,3767.3,0.4778]
[1762139902097,3.2078,3767.9,3767.2,45.4368]
[1762139902298,4.76785386,3767.5,3767.2,45.43892817]
[1762139902497,3.2078,3767.3,3767.2,44.00992817]
[1762139902798,3.2078,3767.3,3767.2,3.20992817]
[1762139903002,3.2078,3767.3,3767.2,0.00212817]
[1762139903294,3.2078,3767.3,3766.6,3.6857]
[1762139903598,1.56005386,3767.5,3767.0,3.2078]
[1762139903793,4.76785386,3767.5,3767.0,3.2078]
[1762139903991,3.2078,3767.1,3767.0,3.2078]
[1762139904192,0.47781,3767.4,3767.0,3.21038652]
[1762139904391,3.2078,3767.1,3767.0,3.21038652]
[1762139905290,3.2078,3767.1,3767.0,0.00258652]
[1762139906392,3.68564,3767.1,3767.0,0.00258652]
[1762139906592,6.4156,3767.1,3766.2,3.2078]
[1762139906797,3.68567,3766.9,3766.2,3.2078]
[1762139906999,0.47787,3766.9,3766.2,44.0078]
[1762139907201,3.2078,3766.7,3766.2,3.2078]
[1762139907398,3.2078,3766.4,3766.2,3.2078]
[1762139907603,3.2078,3766.8,3766.2,3.68574]
[1762139907800,3.2078,3766.9,3766.4,1.3369]
[1762139908100,1.56005386,3767.5,3766.4,1.3369]
[1762139908101,0.47781,3767.3,3766.7,3.2078]
[1762139908607,3.2078,3766.8,3766.2,0.00303596]
[1762139908906,3.2078,3766.3,3766.2,0.00303596]
[1762139909096,0.47793,3766.4,3766.2,0.00303596]
[1762139909296,3.2078,3766.4,3766.2,0.00303596]
[1762139909492,3.2078,3767.4,3766.6,0.4779]
[1762139909696,6.4156,3767.4,3766.4,1.81482]
[1762139909893,3.2078,3767.4,3766.4,1.81482]
[1762139910099,0.47783,3767.2,3766.5,0.4779]
[1762139910304,0.47783,3767.2,3766.6,0.47789]
[1762139910503,3.2078,3767.0,3766.4,1.3369]
[1762139910700,3.68565,3767.0,3766.5,0.4779]
[1762139911002,0.47783,3767.2,3766.6,0.47789]
[1762139911196,0.47786,3766.9,3766.3,3.2078]
[1762139911401,3.2078,3766.4,3766.3,3.68573]
[1762139911597,0.47792,3766.5,3766.3,3.2078]
[1762139911803,3.2078,3766.4,3766.3,3.2078]
[1762139913408,3.68565,3767.0,3766.5,0.47791]
[1762139913602,3.2078,3767.0,3766.4,1.3369]
[1762139913794,3.2078,3767.0,3766.4,1.81482]
[1762139913999,3.2078,3767.0,3766.6,0.47789]
[1762139915003,13.55138385,3768.9,3766.4,1.3369]
[1762139915004,3.2078,3767.4,3766.7,15.73263385]
[1762139915204,6.4156,3767.4,3766.7,15.73263385]
[1762139915608,3.2078,3767.4,3767.3,0.47781]
[1762139915806,3.2078,3767.4,3766.8,40.8]
[1762139916107,3.2078,3767.3,3766.9,0.47785]
[1762139916306,26.25491194,3769.5,3766.8,40.8]
[1762139916307,3.2078,3769.3,3768.1,2.1868]
[1762139916507,2.20796,3768.5,3768.1,13.0988]
[1762139916904,3.2078,3769.3,3768.3,0.47768]
[1762139917102,3.2078,3769.3,3768.4,3.2078]
[1762139917508,2.20796,3769.0,3768.4,3.2078]
[1762139917703,3.2078,3768.8,3768.1,10.912]
[1762139918006,3.2078,3768.8,3768.0,3.2078]
[1762139918209,2.20796,3768.6,3768.0,45.3447]
[1762139918407,2.20796,3768.9,3768.0,45.3447]
[1762139918610,2.20796,3769.1,3768.0,45.3447]
[1762139918809,2.20796,3769.0,3768.3,0.47768]
[1762139919012,3.2078,3769.2,3768.3,0.47768]
[1762139919013,2.20796,3768.7,3768.3,0.47768]
[1762139919312,3.2078,3769.2,3768.4,3.68546]
[1762139919313,2.20796,3769.0,3768.4,3.68546]
[1762139919611,0.00278429,3769.3,3768.8,3.2078]
[1762139919906,2.20796,3768.9,3768.8,3.2078]
[1762139920109,0.00278429,3769.3,3768.9,2.1868]
[1762139920311,0.00278429,3769.3,3769.2,2.1868]
[1762139920604,0.00278429,3769.3,3769.2,5.3946]
[1762139921807,2.21074429,3769.3,3769.2,3.2078]
[1762139922210,2.21074429,3769.3,3768.9,0.00307353]
[1762139923816,1.8059839,3771.0,3768.9,0.00307353]
[1762139923817,3.2078,3771.6,3769.6,1.3369]
[1762139924108,1.429,3772.0,3770.1,0.47744]
[1762139924109,4.6368,3771.2,3770.1,0.47744]
[1762139924312,3.2078,3770.8,3770.0,44.0078]
[1762139925007,3.68725984,3770.8,3770.0,3.2078]
[1762139925310,3.20988984,3770.8,3770.0,3.68526]
[1762139925506,0.00208984,3770.8,3770.0,3.2078]
[1762139925701,0.00208984,3770.8,3769.8,40.8]
[1762139925702,0.00208984,3770.8,3770.5,3.2078]
[1762139925901,0.00208984,3770.8,3770.6,0.47738]
[1762139926302,0.00208984,3770.8,3770.5,0.4774]
[1762139926513,0.00208984,3770.8,3770.4,12.32]
[1762139926758,0.00208984,3770.8,3770.4,10.897]
[1762139927407,0.00208984,3770.8,3770.5,3.2078]
[1762139927807,0.00208984,3770.8,3770.6,0.47739]
[1762139928009,0.00208984,3770.8,3770.7,2.1925]
[1762139928907,0.00208984,3770.8,3770.5,3.2078]
[1762139929216,0.47738,3770.7,3770.4,10.897]
[1762139929410,0.47739,3770.6,3770.4,10.897]
[1762139929707,0.47741,3770.5,3770.1,3.2078]
[1762139929903,0.47739,3770.7,3770.1,3.2078]
[1762139930104,0.00208984,3770.8,3770.1,3.2078]
[1762139930310,0.00208984,3770.8,3770.4,0.47741]
[1762139930613,0.00208984,3770.8,3770.7,2.1925]
[1762139931706,1.429,3772.0,3771.3,2.1925]
[1762139931707,0.47722,3772.0,3771.3,2.1925]
[1762139931915,3.2078,3772.2,3771.0,3.2078]
[1762139932104,0.47725,3771.7,3771.0,44.48514]
[1762139932305,0.47724,3771.8,3771.0,44.48514]
[1762139932809,0.47724,3771.8,3771.0,44.0078]
[1762139932810,0.47729,3771.5,3771.0,44.0078]
[1762139933117,0.4773,3771.4,3771.0,44.0078]
[1762139933305,0.47727,3771.6,3771.0,44.0078]
[1762139934015,0.47728,3771.5,3771.0,44.0078]
[1762139934804,0.47731,3771.3,3771.0,3.2078]
[1762139935213,0.47729,3771.4,3771.0,3.2078]
[1762139936118,1.19325,3771.4,3770.6,3.2078]
[1762139936309,1.19314,3771.7,3770.6,3.2078]
[1762139936310,0.47737,3770.8,3770.6,3.2078]
[1762139937818,0.4774,3770.6,3770.2,3.2078]
[1762139938018,3.2078,3770.4,3769.4,3.2078]
[1762139938219,0.47746,3770.1,3769.4,3.2078]
[1762139938417,0.47749,3769.9,3769.4,44.0078]
[1762139938617,3.2078,3770.4,3769.4,44.0078]
[1762139938811,0.47752,3769.6,3768.9,3.68847353]
[1762139939010,3.2078,3769.8,3769.0,0.47758]
[1762139939213,3.2078,3769.8,3769.1,40.8]
[1762139939518,0.47753,3769.5,3769.1,40.8]
[1762139939715,0.47753,3769.5,3768.9,3.21087353]
[1762139939909,3.2078,3769.8,3768.9,3.68847353]
[1762139940110,3.2078,3769.8,3768.9,3.21087353]
[1762139940320,3.2078,3769.8,3768.9,44.01087353]
[1762139940515,3.2078,3769.8,3768.9,44.48847353]
[1762139940713,0.47757,3769.2,3768.9,0.00307353]
[1762139940919,0.47759,3769.1,3768.9,0.00307353]
[1762139941224,3.2078,3770.2,3769.0,14.0798]
[1762139941415,0.47747,3770.0,3769.6,1.423]
[1762139941619,3.2078,3770.2,3769.6,1.423]
[1762139941817,3.2078,3770.2,3769.4,3.2078]
[1762139942020,0.47747,3770.0,3769.4,3.2078]
[1762139942220,0.47951554,3770.0,3769.4,3.2078]
[1762139942518,0.00204554,3770.0,3769.5,1.423]
[1762139942722,0.00204554,3770.0,3769.5,1.90052]
[1762139942917,0.00204554,3770.0,3769.5,1.423]
[1762139943512,0.00204554,3770.0,3769.9,2.1925]
[1762139943712,3.2078,3771.2,3770.7,2.1925]
[1762139943922,3.2078,3771.2,3770.7,2.66987]
[1762139944117,3.2078,3771.2,3770.7,2.1925]
[1762139944623,3.2078,3771.2,3770.3,3.2078]
[1762139944818,3.21075166,3771.2,3770.3,3.2078]
[1762139945016,3.21075166,3771.2,3770.2,0.8438]
[1762139945017,0.47736,3770.9,3770.2,0.8438]
[1762139945218,3.92075166,3771.2,3770.2,0.8438]
[1762139945418,3.92075166,3771.2,3769.9,3.68527]
[1762139945619,0.4774,3770.6,3769.9,3.68527]
[1762139945819,0.47738,3770.7,3770.1,0.47745]
[1762139946233,3.21075166,3771.2,3770.4,1.423]
[1762139946528,4.62875166,3771.2,3770.3,3.2078]
[1762139946722,0.47737,3770.8,3770.3,3.2078]
[1762139947210,0.47734,3771.0,3770.4,1.423]
[1762139947420,0.00295166,3771.2,3771.1,2.1925]
[1762139949928,0.00295166,3771.2,3771.1,5.4003]
[1762139950725,0.00295166,3771.2,3770.7,3.2078]
[1762139950927,0.00295166,3771.2,3770.8,0.47736]
[1762139951329,0.00295166,3771.2,3770.9,0.47735]
[1762139951627,0.00295166,3771.2,3770.8,0.47735]
[1762139951823,0.00295166,3771.2,3771.0,0.47733]
[1762139952328,0.00295166,3771.2,3770.7,3.2078]
[1762139952329,0.00295166,3771.2,3770.9,1.423]
[1762139952730,0.00295166,3771.2,3770.7,3.2078]
[1762139953023,0.47736,3770.9,3770.7,3.2078]
[1762139953225,0.00295166,3771.2,3770.7,3.68517]
[1762139953524,0.00295166,3771.2,3770.7,3.2078]
[1762139954026,0.47733,3771.1,3770.7,3.2078]
[1762139954224,0.47734,3771.0,3770.7,3.2078]
[1762139954420,2.247,3770.8,3770.7,3.2078]
[1762139955234,0.00295166,3771.2,3770.7,3.2078]
[1762139955432,0.47736,3770.9,3770.7,3.2078]
[1762139955824,0.4774,3770.6,3770.3,3.2078]
[1762139956142,0.47741,3770.5,3770.3,3.2078]
[1762139956720,2.1679,3770.4,3770.3,3.2078]
[1762139957227,3.2078,3770.7,3769.8,3.2078]
[1762139957531,3.2078,3770.7,3769.9,0.47747]
[1762139957730,3.2078,3770.7,3769.8,3.2078]
[1762139958123,3.2078,3770.5,3769.8,3.2078]
[1762139958324,0.47747,3770.0,3769.8,14.0528]
[1762139958531,3.2078,3770.5,3769.8,14.0528]
[1762139958532,0.47745,3770.2,3769.8,14.0528]
[1762139958727,3.2078,3770.5,3769.8,14.0528]
[1762139958928,0.47745,3770.1,3769.8,14.0528]
[1762139959124,3.2078,3770.5,3769.8,14.0528]
[1762139959125,0.47747,3770.0,3769.8,14.0528]
[1762139959937,1.2541,3770.2,3769.3,3.2078]
[1762139960137,3.2078,3770.5,3769.5,1.1844]
[1762139960330,3.2078,3770.5,3769.6,0.47751]
[1762139960635,3.2078,3770.5,3769.5,1.1844]
[1762139960636,0.47742,3770.4,3769.9,0.47747]
[1762139960836,0.47746,3770.1,3769.5,1.66192]
[1762139961037,3.2078,3770.5,3769.7,0.47749]
[1762139961243,3.2078,3770.5,3769.5,1.1844]
[1762139961434,0.47743,3770.3,3769.8,0.47749]
[1762139961631,3.2078,3770.5,3769.5,1.1844]
[1762139961826,3.2078,3770.5,3769.6,10.84]
[1762139962033,3.68521,3770.5,3769.7,14.0468]
[1762139962340,3.2078,3770.5,3770.3,0.47742]
[1762139962639,3.2078,3770.5,3770.1,11.31545]
[1762139962839,0.4774,3770.5,3770.1,11.31545]
[1762139963037,0.47739,3770.7,3770.2,0.47744]
[1762139963236,0.47741,3770.5,3770.1,10.838]
[1762139963536,1.2541,3770.2,3769.7,3.2078]
[1762139963738,1.2541,3770.2,3769.8,10.836]
[1762139963739,0.47749,3769.9,3769.8,10.836]
[1762139963938,0.47749,3769.9,3769.7,3.2078]
[1762139964139,2.1679,3769.0,3768.6,1.897358]
[1762139964440,0.47758,3769.1,3768.5,0.47765]
[1762139964840,0.47758,3769.1,3768.3,54.8438]
[1762139965036,3.2078,3769.3,3768.6,0.47764]
[1762139965240,0.47759,3769.1,3768.3,54.8438]
[1762139965731,0.47759,3769.1,3768.3,44.0078]
[1762139965928,0.47759,3769.1,3768.8,10.833]
[1762139966134,3.2078,3769.3,3768.8,10.833]
[1762139966531,0.47758,3769.1,3768.8,10.833]
[1762139966739,0.47758,3769.1,3768.3,3.68547]
[1762139966944,2.1679,3769.0,3768.9,10.83607353]
[1762139967436,2.1679,3769.0,3768.9,0.00307353]
[1762139967841,0.47769,3768.3,3767.9,3.2078]
[1762139968046,0.47769,3768.3,3768.0,10.83]
[1762139968541,2.0137,3768.1,3767.9,3.2078]
[1762139968744,2.0137,3768.0,3767.9,0.00328655]
[1762139968934,0.00334342,3768.1,3767.9,10.83228655]
[1762139969139,0.00334342,3768.1,3767.9,0.00328655]
[1762139969435,0.00334342,3768.1,3767.9,10.83128655]
[1762139970744,2.0137,3768.0,3767.9,0.00328655]
[1762139970942,0.00334342,3768.1,3767.9,10.83128655]
[1762139972040,2.0137,3768.0,3767.9,10.83128655]
[1762139972548,2.0137,3768.0,3767.9,10.82828655]
[1762139972948,2.0137,3768.0,3767.9,0.00328655]
[1762139973143,2.0137,3768.0,3767.9,10.82728655]
[1762139973746,2.0137,3768.0,3767.9,0.00328655]
[1762139974051,5.2215,3768.0,3767.9,0.00328655]
[1762139974549,5.2215,3768.0,3767.0,3.68564]
[1762139974550,2.0137,3767.3,3767.0,3.68564]
[1762139974752,2.0137,3767.3,3766.8,0.47787]
[1762139975052,2.0137,3767.3,3766.9,10.82]
[1762139975444,2.0137,3767.0,3766.9,0.00275514]
[1762139977545,3.2078,3767.8,3766.9,0.00275514]
[1762139977853,3.2078,3767.8,3767.0,0.47783]
[1762139978052,3.68555,3767.8,3767.1,0.47783]
[1762139978251,3.2078,3767.8,3766.9,0.00275514]
[1762139978457,3.2078,3767.8,3767.1,3.2078]
[1762139978646,0.47776,3767.7,3767.1,3.2078]
[1762139978843,3.2078,3767.8,3767.3,0.47781]
[1762139979054,3.2078,3767.8,3767.3,0.4778]
[1762139979355,3.68556,3767.8,3767.3,0.4778]
[1762139979554,3.2078,3767.8,3767.4,0.47779]
[1762139980854,3.2078,3767.8,3767.3,0.4778]
[1762139981357,3.2078,3767.8,3767.1,0.47783]
[1762139981548,3.2078,3767.8,3766.9,0.00275514]
[1762139981853,0.47776,3767.7,3767.1,0.47783]
[1762139982052,3.2078,3767.8,3767.1,3.2078]
[1762139982257,3.2078,3767.8,3766.9,0.00275514]
[1762139982554,3.2078,3767.8,3767.5,0.47778]
[1762139982850,3.2078,3767.8,3767.7,2.0008]
[1762139983155,0.00334342,3768.1,3767.9,0.47773]
[1762139983753,0.00334342,3768.1,3767.8,0.47774]
[1762139984050,0.00334342,3768.1,3767.9,0.47773]
[1762139984448,0.00334342,3768.1,3767.7,3.2078]
[1762139984449,0.00334342,3768.1,3767.7,3.68555]
[1762139984645,0.00334342,3768.1,3768.0,3.2166]
[1762139985148,0.00334342,3768.1,3768.0,54.8196]
[1762139985748,3.2078,3769.1,3768.9,0.4776]
[1762139985950,3.2078,3769.1,3768.7,0.47762]
[1762139985951,1.9283,3768.8,3768.7,0.47762]
[1762139986155,2.40593,3768.8,3768.0,12.0188]
[1762139986349,1.9283,3768.8,3768.5,0.47765]
[1762139986654,1.93037904,3768.8,3768.3,0.47767]
[1762139986956,1.9283,3768.1,3767.8,3.2078]
[1762139987154,2.40601,3768.1,3767.8,3.2078]
[1762139987355,4.38,3768.6,3767.4,3.2078]
[1762139987356,0.47775,3767.8,3767.4,3.2078]
[1762139987553,1.9283,3767.5,3767.4,3.2078]
[1762139988551,1.154,3768.0,3767.4,3.2078]
[1762139989451,1.154,3768.0,3767.4,3.68559]
[1762139990152,1.9283,3767.5,3767.4,3.2078]
[1762139990353,1.9283,3767.0,3766.4,3.2078]
[1762139990552,1.9283,3767.0,3765.9,3.2078]
[1762139990753,2.9995,3766.0,3765.5,3.68583]
[1762139990951,2.9995,3766.0,3765.6,0.47802]
[1762139991457,2.9995,3766.0,3765.5,3.2078]
[1762139991652,3.00216824,3766.0,3765.5,3.21099523]
[1762139992053,0.00266824,3766.0,3765.6,0.47801]
[1762139992255,0.00266824,3766.0,3765.5,3.21099523]
[1762139993057,0.00266824,3766.0,3765.8,0.478]
[1762139994166,0.00266824,3766.0,3765.9,1.8409]
[1762139994758,0.00266824,3766.0,3765.9,6.65347436]
[1762139995860,0.00266824,3766.0,3765.9,5.0487]
[1762139996857,0.00266824,3766.0,3765.9,3.2078]
[1762139997054,0.00266824,3766.0,3765.5,0.00319523]
[1762139997055,1.9283,3765.6,3765.5,0.00319523]
[1762139998264,1.9283,3765.6,3763.9,1.31261835]
[1762139998265,1.9283,3764.8,3763.8,3.2078]
[1762139998464,5.1361,3764.8,3763.8,3.2078]
[1762139998661,1.9283,3764.8,3763.9,1.1218]
[1762139999265,1.9283,3764.8,3764.2,0.47819]
[1762139999466,1.9283,3764.8,3763.9,1.12444381]
[1762139999666,1.9283,3764.8,3763.9,0.00264381]
[1762139999667,5.1361,3764.8,3763.9,0.00264381]
[1762140000668,5.1361,3764.8,3763.9,0.48087381]
[1762140000864,3.2078,3765.6,3764.6,3.2078]
[1762140001367,3.2078,3765.2,3764.6,3.68594]
[1762140001571,3.2078,3765.8,3765.2,0.47807]
[1762140001761,3.2078,3765.8,3764.6,4.3296]
[1762140001959,3.2078,3765.4,3764.8,0.47811]
[1762140002168,3.2078,3765.4,3764.6,4.3296]
[1762140002369,1.17486824,3766.0,3765.5,0.47803]
[1762140002662,1.9283,3765.1,3765.0,3.2078]
[1762140002867,1.9283,3765.1,3764.3,3.2078]
[1762140003070,1.9283,3765.1,3764.4,0.47818]
[1762140003462,1.9283,3765.1,3764.6,0.47815]
[1762140003868,1.9283,3765.1,3765.0,0.4781]
[1762140004164,3.2078,3765.7,3765.1,0.47808]
[1762140004369,3.2078,3765.7,3764.8,3.2078]
[1762140004575,3.2078,3765.7,3765.0,0.4781]
[1762140004772,0.47803,3765.6,3764.8,3.68592]
[1762140004969,1.9283,3764.9,3764.8,3.2078]
[1762140005267,1.9283,3764.9,3764.3,3.68598]
[1762140005458,0.47814,3764.8,3764.3,3.68598]
[1762140005658,0.47809,3765.1,3764.4,0.47816]
[1762140005863,3.2078,3765.2,3764.3,3.2078]
[1762140006170,3.2078,3765.2,3764.6,0.47815]
[1762140007070,0.47809,3765.1,3764.6,0.47815]
[1762140007266,1.9283,3764.4,3764.0,0.47822]
[1762140007470,2.40653,3764.0,3763.9,0.00264381]
[1762140008173,0.47817,3764.5,3763.9,0.00264381]
[1762140008363,0.47817,3764.5,3763.0,0.47123068]
[1762140008364,0.47823,3764.0,3763.8,1.82734946]
[1762140008565,0.3925,3763.2,3761.2,1.897358]
[1762140008771,3.2078,3761.3,3760.5,0.47867]
[1762140009068,3.2078,3760.7,3759.8,40.8]
[1762140009567,0.00249367,3760.7,3760.6,3.2078]
[1762140009769,3.2078,3761.5,3760.6,3.2078]
[1762140009966,3.2078,3761.5,3761.0,0.4786]
[1762140010272,3.2078,3761.5,3760.8,0.47863]
[1762140010472,3.2078,3761.5,3760.6,3.2078]
[1762140010676,3.2078,3761.1,3760.8,0.47862]
[1762140010970,3.21047012,3761.1,3760.4,1.1240731]
[1762140012673,3.21047012,3761.1,3760.4,1.6027531]
[1762140012865,3.21047012,3761.1,3760.5,0.47866]
[1762140013271,3.21047012,3761.1,3760.8,0.47863]
[1762140013668,3.21047012,3761.1,3760.4,1.1240731]
[1762140013669,0.00267012,3761.1,3760.9,0.47861]
[1762140016680,0.00267012,3761.1,3761.0,1.8409]
[1762140017377,0.00267012,3761.1,3760.7,1.60477436]
[1762140017573,3.2078,3761.0,3760.4,0.0022731]